bitfinex/quotes_SOLUSD_20241001
["timestamp","ask_amount","ask_price","bid_price","bid_amount"]
[1727756660441,6.4342,155.42,155.37,22.1861]
[1727756660766,6.4338,155.43,155.38,6.4358]
[1727756665660,6.4341,155.42,155.38,6.4358]
[1727756665867,6.4341,155.42,155.37,15.75]
[1727756666767,6.4346,155.41,155.37,15.75]
[1727756667453,46.59488391,155.47,155.34,21.4658]
[1727756667454,8.8739,155.43,155.34,21.4658]
[1727756667659,6.4354,155.39,155.35,1.28714525]
[1727756668252,8.8739,155.43,155.35,1.28714525]
[1727756668455,8.8739,155.43,155.34,15.0284]
[1727756668456,6.4363,155.37,155.34,15.0284]
[1727756671943,6.4363,155.37,155.35,1.28724598]
[1727756672952,46.60160003,155.42,155.35,1.28724598]
[1727756673164,6.4358,155.38,155.35,1.28724598]
[1727756674748,6.4358,155.38,155.34,15.0284]
[1727756676460,6.4362,155.37,155.34,15.0284]
[1727756676973,6.4358,155.38,155.35,1.28720995]
[1727756677272,6.4358,155.38,155.34,15.0284]
[1727756680070,6.4364,155.37,155.34,15.0284]
[1727756682654,6.4367,155.36,155.34,15.0284]
[1727756682850,6.73851603,155.42,155.35,7.72421397]
[1727756683050,256.0,155.52,155.35,7.72421397]
[1727756683051,17.20436654,155.45,155.35,1.28731397]
[1727756683292,6.4346,155.41,155.36,6.4362]
[1727756683572,16.0827,155.45,155.35,12.77277823]
[1727756683778,6.435,155.4,155.35,6.4369]
[1727756687580,39.861984,155.43,155.34,31.1212]
[1727756687753,6.4361,155.38,155.34,31.1212]
[1727756688168,23.776884,155.41,155.34,15.0284]
[1727756688358,6.4363,155.37,155.34,15.0284]
[1727756688659,6.4366,155.36,155.34,15.0284]
[1727756694163,6.4363,155.37,155.34,15.0284]
[1727756697384,6.4358,155.38,155.35,1.28732039]
[1727756700569,6.4355,155.39,155.35,1.28732039]
[1727756702068,6.4355,155.39,155.34,21.4654]
[1727756702592,6.4359,155.38,155.34,21.4654]
[1727756702797,23.776884,155.43,155.35,1.28716049]
[1727756703093,6.4354,155.39,155.35,7.72416049]
[1727756703287,6.4354,155.39,155.35,1.28716049]
[1727756703480,6.4354,155.39,155.36,1.28715562]
[1727756704174,6.4354,155.39,155.34,21.4658]
[1727756709499,1.60894534,155.43,155.34,15.0284]
[1727756709807,6.4353,155.4,155.35,6.4369]
[1727756710783,6.4354,155.39,155.34,21.4657]
[1727756711097,1.60894534,155.43,155.34,21.4657]
[1727756711098,6.4358,155.38,155.34,21.4657]
[1727756711402,6.4358,155.38,155.35,7.30739147]
[1727756711696,6.4358,155.38,155.34,21.4657]
[1727756711870,6.4358,155.38,155.35,7.30657024]
[1727756712071,6.4358,155.38,155.34,21.4657]
[1727756712279,6.4358,155.38,155.35,7.30665696]
[1727756712576,6.4358,155.38,155.34,21.4657]
[1727756712777,6.4358,155.38,155.35,7.30918904]
[1727756712977,6.4358,155.38,155.34,21.4657]
[1727756713189,6.4358,155.38,155.35,7.30813343]
[1727756713401,6.4358,155.38,155.34,21.4657]
[1727756713693,6.435,155.4,155.35,8.59710991]
[1727756713901,6.435,155.4,155.36,21.05646132]
[1727756714197,6.435,155.4,155.37,1.28702052]
[1727756714400,6.4346,155.41,155.37,1.28702052]
[1727756715684,6.4346,155.41,155.38,1.28701573]
[1727756716782,6.4346,155.41,155.37,1.28701604]
[1727756717586,6.73710286,155.46,155.38,15.2351]
[1727756717907,6.4341,155.43,155.39,1.28686584]
[1727756718502,6.73710286,155.46,155.39,1.28686584]
[1727756718688,6.4342,155.42,155.39,1.28686584]
[1727756722502,6.4342,155.42,155.38,15.2351]
[1727756725404,6.4342,155.42,155.39,1.28687029]
[1727756726909,6.4338,155.43,155.39,1.28687029]
[1727756729306,6.4338,155.43,155.38,21.6706]
[1727756730089,6.4342,155.42,155.38,21.6706]
[1727756732112,6.4338,155.43,155.38,21.6706]
[1727756735313,6.73710286,155.46,155.4,6.4348]
[1727756735513,6.4329,155.45,155.41,1.28660212]
[1727756735691,6.4329,155.45,155.42,15.9324]
[1727756735893,6.4329,155.45,155.43,1.28658441]
[1727756736511,6.4326,155.46,155.43,6.1217]
[1727756736711,6.432,155.48,155.44,1.28658622]
[1727756736919,6.4313,155.49,155.44,7.71978622]
[1727756737211,6.4313,155.49,155.44,6.4332]
[1727756737405,6.4313,155.49,155.45,1.28627624]
[1727756737607,6.73375035,155.53,155.47,6.4319]
[1727756737790,6.4296,155.53,155.48,1.28605853]
[1727756739191,6.57864038,155.55,155.47,6.4319]
[1727756739390,6.43,155.52,155.47,6.4319]
[1727756739806,6.43,155.52,155.46,15.0503]
[1727756739807,6.43,155.52,155.46,21.4827]
[1727756740098,1.60763002,155.51,155.46,15.0503]
[1727756740316,1.60772512,155.54,155.46,15.0503]
[1727756740718,23.776884,155.53,155.46,15.0503]
[1727756741016,6.432,155.48,155.46,15.0503]
[1727756744299,6.4328,155.46,155.43,6.1217]
[1727756744514,6.57864038,155.52,155.43,6.1217]
[1727756744723,6.4321,155.47,155.43,6.1217]
[1727756746020,6.57864038,155.52,155.43,6.1217]
[1727756746216,6.4316,155.49,155.44,1.28633683]
[1727756747118,6.4317,155.48,155.44,1.28633683]
[1727756747710,6.4317,155.48,155.43,12.5553]
[1727756750411,6.4317,155.48,155.44,1.28635761]
[1727756750813,6.4317,155.48,155.43,12.5553]
[1727756751327,1.60794435,155.51,155.43,6.1217]
[1727756751527,1.60794435,155.51,155.42,15.7903]
[1727756751528,6.433,155.45,155.42,15.7903]
[1727756752806,1.60822019,155.49,155.42,15.7903]
[1727756753008,6.4335,155.44,155.42,15.7903]
[1727756754019,6.4337,155.43,155.42,15.7903]
[1727756757534,16.081,155.47,155.39,6.6558]
[1727756757535,6.4347,155.41,155.39,6.6558]
[1727756758836,6.435,155.4,155.39,6.6558]
[1727756759013,1.60826064,155.46,155.38,16.5237]
[1727756759014,6.4354,155.39,155.38,16.5237]
[1727756769336,1.60864863,155.42,155.35,6.102]
[1727756769533,16.0873,155.41,155.34,16.4983]
[1727756769739,6.437,155.35,155.34,16.4983]
[1727756770238,6.438,155.33,155.31,6.1618]
[1727756770428,6.4375,155.34,155.31,6.1618]
[1727756772846,6.438,155.33,155.3,22.70780574]
[1727756773142,1.60918111,155.37,155.3,15.4191]
[1727756773343,6.4383,155.32,155.31,1.28758951]
[1727756773644,6.4383,155.32,155.3,15.4191]
[1727756775741,16.0898,155.38,155.3,15.4191]
[1727756775944,6.4379,155.33,155.3,15.4191]
[1727756776124,6.4379,155.33,155.31,1.28751607]
[1727756776538,6.4375,155.34,155.31,1.28751607]
[1727756776753,6.4375,155.34,155.3,15.4191]
[1727756777044,6.4375,155.34,155.31,1.28743684]
[1727756777633,16.0898,155.38,155.31,1.28743684]
[1727756777844,6.4371,155.35,155.3,21.8581]
[1727756778346,6.4376,155.34,155.3,15.4191]
[1727756778550,6.4379,155.33,155.3,15.4191]
[1727756780054,16.0924,155.36,155.27,22.6923]
[1727756780238,6.4387,155.31,155.27,22.6923]
[1727756793846,6.4387,155.31,155.27,29.1326]
[1727756794048,6.4387,155.31,155.27,22.6923]
[1727756799454,6.4387,155.31,155.28,1.2876845]
[1727756799852,6.4387,155.31,155.27,22.6923]
[1727756802672,6.4387,155.31,155.28,1.28768656]
[1727756802877,6.4387,155.31,155.27,22.6923]
[1727756803980,6.4383,155.32,155.28,1.28768425]
[1727756804270,6.4383,155.32,155.27,29.1326]
[1727756805161,6.4371,155.35,155.3,6.439]
[1727756805356,6.437,155.36,155.31,22.3089]
[1727756805556,1.60922311,155.36,155.31,15.8704]
[1727756805762,1.60934821,155.38,155.31,15.8704]
[1727756806868,6.4383,155.32,155.31,15.8704]
[1727756807070,6.4383,155.32,155.27,28.4678]
[1727756809973,6.4391,155.3,155.27,15.4354]
[1727756816577,1.60975967,155.34,155.25,6.4409]
[1727756816768,6.4396,155.29,155.24,6.4415]
[1727756820187,6.4396,155.29,155.25,1.28793532]
[1727756821283,6.4396,155.29,155.25,7.72903532]
[1727756821486,6.4392,155.3,155.26,6.4407]
[1727756821984,6.4387,155.31,155.27,1.28781814]
[1727756822568,6.4384,155.32,155.27,7.72781814]
[1727756822768,6.4379,155.33,155.29,6.4394]
[1727756822994,6.4375,155.34,155.3,1.28760665]
[1727756823166,6.4375,155.34,155.3,7.72670665]
[1727756823367,6.4375,155.34,155.3,6.4391]
[1727756824288,6.4371,155.35,155.31,1.28752165]
[1727756824677,1.60931651,155.37,155.28,16.442]
[1727756824877,6.4375,155.34,155.28,16.442]
[1727756825084,6.4375,155.34,155.29,6.4394]
[1727756826395,16.0899,155.38,155.3,7.72652943]
[1727756826396,6.437,155.36,155.3,7.72652943]
[1727756827266,6.437,155.36,155.3,1.28752943]
[1727756827465,13.08057028,155.4,155.32,6.4383]
[1727756827466,6.4363,155.37,155.32,6.4383]
[1727756827790,16.89955908,155.41,155.33,7.72513775]
[1727756827791,6.4358,155.38,155.33,7.72513775]
[1727756828292,16.89955908,155.41,155.33,1.28733775]
[1727756828478,6.4362,155.37,155.32,6.4382]
[1727756828791,6.4362,155.37,155.33,1.2873382]
[1727756828995,6.4362,155.37,155.32,6.4382]
[1727756829681,23.776884,155.4,155.32,1.28734199]
[1727756829895,23.776884,155.4,155.31,22.5344]
[1727756829896,6.4368,155.36,155.31,22.5344]
[1727756830192,6.4368,155.36,155.33,1.28745064]
[1727756830393,6.4368,155.36,155.31,22.5344]
[1727756830778,16.89955908,155.41,155.31,28.86857823]
[1727756830779,6.4363,155.37,155.31,28.86857823]
[1727756830981,6.4357,155.39,155.33,6.4375]
[1727756831176,6.4361,155.38,155.33,6.4375]
[1727756831895,6.4363,155.37,155.33,6.4375]
[1727756832575,6.4379,155.33,155.28,22.8816]
[1727756833987,6.4379,155.33,155.29,6.4395]
[1727756834185,6.4374,155.35,155.29,6.4395]
[1727756834489,16.0915,155.37,155.29,6.4395]
[1727756834690,6.4375,155.34,155.29,6.4395]
[1727756840291,6.4384,155.32,155.28,22.8819]
[1727756840991,6.4378,155.34,155.29,6.4391]
[1727756841301,6.4379,155.33,155.29,6.4391]
[1727756842676,6.4379,155.33,155.28,22.8818]
[1727756842874,6.4384,155.32,155.28,16.442]
[1727756843896,6.4378,155.34,155.28,22.8818]
[1727756845793,6.4378,155.34,155.29,6.4395]
[1727756846302,6.4378,155.34,155.3,1.2875227]
[1727756846499,6.4378,155.34,155.29,6.4395]
[1727756851416,6.4387,155.32,155.28,22.4755]
[1727756853097,6.4379,155.33,155.28,28.9154]
[1727756855413,6.4379,155.33,155.29,6.4395]
[1727756855790,1.60948839,155.36,155.29,6.4395]
[1727756855994,6.4374,155.34,155.29,6.4395]
[1727756868410,16.0915,155.37,155.28,22.4755]
[1727756868608,6.4371,155.35,155.3,6.439]
[1727756870814,6.7405696,155.38,155.32,16.2912]
[1727756871020,6.4362,155.37,155.32,22.7292]
[1727756871323,6.4359,155.38,155.33,6.4378]
[1727756876329,6.4359,155.38,155.33,12.4488]
[1727756876535,6.4359,155.38,155.34,1.28715712]
[1727756876721,6.4354,155.39,155.34,7.72455712]
[1727756876920,6.4354,155.39,155.34,6.4374]
[1727756878042,6.4358,155.38,155.33,6.011]
[1727756878250,6.4358,155.38,155.33,12.4488]
[1727756884248,6.4362,155.37,155.33,12.4488]
[1727756887846,6.4362,155.37,155.33,6.011]
[1727756888046,6.4371,155.35,155.32,16.2912]
[1727756888751,1.60925753,155.4,155.32,16.2912]
[1727756888752,6.4379,155.33,155.32,16.2912]
[1727756888934,6.4379,155.33,155.29,6.2871]
[1727756893276,6.4379,155.33,155.3,1.28761822]
[1727756893470,39.866284,155.39,155.3,1.28761822]
[1727756893471,6.4375,155.34,155.3,1.28761822]
[1727756893662,6.4375,155.34,155.29,12.7265]
[1727756895973,39.866284,155.39,155.31,6.4383]
[1727756895974,6.4368,155.36,155.31,6.4383]
[1727756896171,6.0779,155.4,155.32,6.4382]
[1727756896373,6.4362,155.37,155.32,6.4382]
[1727756897684,21.60916365,155.39,155.3,39.873984]
[1727756897853,6.4367,155.36,155.31,6.4386]
[1727756900081,6.4363,155.37,155.32,6.4382]
[1727756901779,6.4363,155.37,155.33,16.1697]
[1727756904059,6.4367,155.36,155.33,16.1697]
[1727756905365,14.76206861,155.41,155.33,16.1697]
[1727756905564,6.4358,155.38,155.34,1.28725532]
[1727756906589,6.4358,155.38,155.33,22.6075]
[1727756907291,6.4358,155.38,155.34,1.28727941]
[1727756908968,6.4358,155.38,155.35,1.28727957]
[1727756909280,6.4358,155.38,155.33,22.6075]
[1727756912275,6.4354,155.39,155.34,7.72462185]
[1727756912479,6.4354,155.39,155.34,6.4374]
[1727756913178,6.4358,155.38,155.34,6.4374]
[1727756914385,6.4365,155.37,155.33,16.1697]
[1727756914593,6.4367,155.36,155.33,16.1697]
[1727756915171,6.4354,155.39,155.35,6.437]
[1727756915375,6.4354,155.39,155.34,6.4855]
[1727756915592,6.4354,155.39,155.34,12.9228]
[1727756915974,6.435,155.4,155.35,6.437]
[1727756922105,1.60889039,155.41,155.35,6.437]
[1727756922284,6.4354,155.39,155.35,6.437]
[1727756927110,6.4358,155.38,155.34,12.9229]
[1727756927900,6.4358,155.38,155.34,6.4855]
[1727756928209,6.4371,155.35,155.33,16.1697]
[1727756946409,6.4371,155.35,155.3,12.8397]
[1727756947221,22.82620503,155.41,155.31,7.7261547]
[1727756947516,6.4366,155.36,155.31,6.4386]
[1727756956924,21.60929347,155.4,155.31,6.4386]
[1727756957130,6.4371,155.35,155.3,6.4009]
[1727756957426,23.776884,155.39,155.3,6.4009]
[1727756957626,6.4374,155.34,155.3,6.4009]
[1727756958216,6.4374,155.34,155.3,12.8399]
[1727756958625,6.4374,155.34,155.31,1.28751947]
[1727756959122,6.437,155.36,155.31,6.4386]
[1727756960022,1.60925754,155.35,155.29,37.942]
[1727756960203,6.4375,155.34,155.29,37.942]
[1727756963839,6.4375,155.34,155.3,1.2876303]
[1727756964314,6.4375,155.34,155.3,7.7266303]
[1727756967030,6.4371,155.35,155.3,7.7266303]
[1727756969822,6.73560433,155.4,155.34,15.3055]
[1727756970024,13.17060433,155.4,155.35,7.72428645]
[1727756970341,6.435,155.4,155.35,7.72428645]
[1727756970515,6.435,155.4,155.35,6.437]
[1727756981851,6.435,155.4,155.36,1.2871175]
[1727756983945,6.435,155.4,155.35,6.437]
[1727756987743,6.435,155.4,155.36,1.28710329]
[1727756988046,6.435,155.4,155.35,6.437]
[1727756991337,6.4339,155.43,155.38,6.4357]
[1727756991538,6.4339,155.43,155.39,1.2868504]
[1727756992036,6.4339,155.43,155.38,6.4357]
[1727756995063,6.4339,155.43,155.39,1.28680441]
[1727756995656,6.4339,155.43,155.38,6.4357]
[1727757001248,6.4339,155.43,155.39,1.2867829]
[1727757001451,6.4339,155.43,155.39,7.7220829]
[1727757001659,6.4339,155.43,155.39,6.4353]
[1727757007781,6.4334,155.44,155.4,1.28678384]
[1727757008074,6.4334,155.44,155.4,7.72168384]
[1727757009575,6.4334,155.44,155.4,6.4349]
[1727757009758,6.4334,155.44,155.39,6.4353]
[1727757009958,1.60834489,155.47,155.37,32.2206]
[1727757010157,6.4337,155.43,155.38,6.4357]
[1727757013474,6.4342,155.42,155.37,38.6568]
[1727757015785,1.60863346,155.41,155.37,16.1309]
[1727757015974,1.60885134,155.44,155.37,16.1309]
[1727757016481,20.0,155.45,155.37,17.41798061]
[1727757016668,6.4342,155.42,155.37,23.85378061]
[1727757016885,39.859184,155.46,155.38,6.4357]
[1727757017073,6.57864038,155.49,155.39,6.4353]
[1727757017074,6.4334,155.44,155.39,6.4353]
[1727757017269,8.18718904,155.49,155.38,28.86157823]
[1727757017468,6.433,155.45,155.4,6.4349]
[1727757017858,6.57864038,155.49,155.41,7.7725873]
[1727757018065,6.4321,155.47,155.42,6.4338]
[1727757018265,6.4321,155.47,155.43,1.28655456]
[1727757019074,6.4321,155.47,155.42,6.4338]
[1727757019268,6.4325,155.46,155.41,6.4859]
[1727757020269,1.6081962,155.49,155.41,6.4859]
[1727757020465,23.776884,155.48,155.41,6.4859]
[1727757020678,6.4342,155.42,155.39,16.447]
[1727757021267,6.4338,155.43,155.4,1.2869422]
[1727757021585,6.4338,155.43,155.39,16.447]
[1727757021972,6.4342,155.42,155.39,16.447]
[1727757023792,6.4346,155.41,155.39,16.447]
[1727757028971,6.435,155.4,155.35,21.454]
[1727757029775,1.60872267,155.45,155.35,15.0171]
[1727757029979,6.4346,155.41,155.36,6.4366]
[1727757033075,16.0821,155.46,155.35,15.0171]
[1727757033076,6.4354,155.39,155.35,21.454]
[1727757033274,6.4354,155.39,155.35,15.0171]
[1727757033780,6.4354,155.39,155.36,1.2871869]
[1727757034091,6.4354,155.39,155.35,15.0171]
[1727757035487,1.60897364,155.43,155.33,6.4489]
[1727757035488,23.776884,155.42,155.33,6.4489]
[1727757035800,6.4362,155.37,155.33,12.8867]
[1727757036001,6.4358,155.38,155.33,12.8867]
[1727757036993,6.4358,155.38,155.34,1.28731601]
[1727757038077,6.4358,155.38,155.33,12.8867]
[1727757038480,23.776884,155.42,155.31,44.24027823]
[1727757038481,6.437,155.36,155.31,37.9058]
[1727757038680,8.04648598,155.35,155.31,31.4675]
[1727757038975,6.4371,155.35,155.31,31.4675]
[1727757039679,6.4363,155.37,155.32,6.4381]
[1727757041196,6.4363,155.37,155.33,6.4378]
[1727757043897,1.60937082,155.36,155.33,6.4378]
[1727757044102,8.04617082,155.36,155.31,31.4675]
[1727757044405,1.60951039,155.35,155.31,37.9061]
[1727757044797,6.4368,155.36,155.31,37.9061]
[1727757047006,1.60950604,155.35,155.31,37.9061]
[1727757048596,6.4368,155.36,155.31,37.9061]
[1727757049478,1.60950489,155.35,155.31,37.9061]
[1727757050593,6.4368,155.36,155.31,37.9061]
[1727757052997,1.60950648,155.35,155.31,22.5352]
[1727757053695,8.04650648,155.35,155.31,22.5352]
[1727757053903,6.437,155.35,155.31,22.5352]
[1727757054708,1.60950665,155.34,155.31,22.5352]
[1727757057710,6.437,155.35,155.31,22.5352]
[1727757061796,1.60954453,155.34,155.31,16.0966]
[1727757069315,20.0,155.39,155.31,16.0966]
[1727757069498,6.4367,155.36,155.32,6.4382]
[1727757071307,1.60940233,155.35,155.32,6.4382]
[1727757073218,6.4367,155.36,155.32,6.4382]
[1727757074623,1.60940216,155.35,155.32,6.4382]
[1727757077324,6.73183911,155.4,155.33,17.38162144]
[1727757077508,6.4354,155.39,155.34,6.437]
[1727757078216,6.4354,155.39,155.35,6.437]
[1727757078403,1.60902945,155.38,155.35,6.437]
[1727757078818,1.60902945,155.38,155.34,6.4374]
[1727757081327,6.4354,155.39,155.34,6.4374]
[1727757081625,12.85513761,155.43,155.35,1.28727107]
[1727757081833,1.60889767,155.42,155.37,6.4362]
[1727757082012,23.776884,155.44,155.37,6.4362]
[1727757082419,1.60890094,155.43,155.37,6.4362]
[1727757083215,6.4346,155.41,155.37,6.4362]
[1727757084238,1.60890184,155.4,155.37,6.4362]
[1727757085230,6.4346,155.41,155.37,6.4362]
[1727757086229,23.776884,155.44,155.38,1.28712105]
[1727757086230,6.4337,155.44,155.38,1.28712105]
[1727757086409,8.731,155.46,155.4,6.4349]
[1727757086611,6.4329,155.46,155.41,7.72133688]
[1727757086810,13.14745384,155.47,155.42,6.4341]
[1727757087123,13.14745384,155.47,155.41,1.28683688]
[1727757087124,6.4325,155.46,155.41,6.4345]
[1727757087328,1.6083847,155.45,155.41,6.4345]
[1727757087519,6.4325,155.46,155.41,6.4345]
[1727757087918,8.04088464,155.46,155.41,6.4345]
[1727757089035,6.4325,155.46,155.41,6.4345]
[1727757089222,1.60838447,155.45,155.41,6.4345]
[1727757089413,6.4334,155.44,155.39,22.5231]
[1727757089612,8.04178435,155.44,155.39,22.5231]
[1727757090235,6.4334,155.44,155.39,22.5231]
[1727757090441,43.776884,155.49,155.39,16.0877]
[1727757090611,6.433,155.45,155.4,6.4349]
[1727757091305,1.60857835,155.44,155.4,6.4349]
[1727757091909,6.433,155.45,155.4,6.4349]
[1727757093133,1.60857965,155.44,155.4,6.4349]
[1727757094022,8.04197965,155.44,155.39,16.0877]
[1727757094328,23.776884,155.49,155.39,16.0877]
[1727757094329,6.4338,155.43,155.39,16.0877]
[1727757095836,6.4338,155.43,155.39,22.523]
[1727757096615,6.4334,155.44,155.39,22.523]
[1727757097724,6.433,155.45,155.4,6.4349]
[1727757097919,1.60857258,155.44,155.4,6.4349]
[1727757098844,6.433,155.45,155.4,6.4349]
[1727757099415,1.60853016,155.44,155.4,6.4349]
[1727757099710,6.433,155.45,155.4,6.4349]
[1727757101637,1.60852995,155.44,155.4,6.4349]
[1727757102638,6.4326,155.46,155.41,7.72102383]
[1727757102812,6.4326,155.46,155.41,6.4342]
[1727757105847,1.60842695,155.45,155.41,6.4342]
[1727757106648,6.4326,155.46,155.41,6.4342]
[1727757107248,1.60842523,155.45,155.41,6.4342]
[1727757107847,6.4326,155.46,155.41,6.4342]
[1727757108547,1.60842498,155.45,155.41,6.4342]
[1727757109140,6.4326,155.46,155.41,6.4342]
[1727757110029,1.60841546,155.45,155.41,6.4342]
[1727757112439,6.4326,155.46,155.41,6.4342]
[1727757112755,1.60841304,155.45,155.41,6.4342]
[1727757113155,6.4326,155.46,155.41,6.4342]
[1727757113354,1.60841277,155.45,155.41,6.4342]
[1727757115154,6.4326,155.46,155.41,6.4342]
[1727757115736,6.4326,155.46,155.42,15.1161]
[1727757115938,6.4321,155.47,155.42,22.83676796]
[1727757116148,6.4321,155.47,155.42,21.5501]
[1727757116357,6.4321,155.47,155.42,22.83666492]
[1727757116559,6.4321,155.47,155.42,21.5501]
[1727757119845,1.60823446,155.46,155.42,15.1161]
[1727757120044,6.4326,155.46,155.42,15.1161]
[1727757120248,8.04127636,155.45,155.42,15.1161]
[1727757120455,8.04187234,155.44,155.39,12.4683]
[1727757120634,6.4334,155.44,155.39,12.4683]
[1727757120969,6.4334,155.44,155.39,6.0333]
[1727757121257,6.4334,155.44,155.4,6.4349]
[1727757121455,1.60851041,155.48,155.4,6.4349]
[1727757121761,6.4326,155.46,155.41,6.4344]
[1727757122066,6.4326,155.46,155.41,7.72117272]
[1727757122246,6.4321,155.47,155.42,6.4339]
[1727757123144,6.4321,155.47,155.43,1.28661972]
[1727757123433,6.4321,155.47,155.42,6.4339]
[1727757123434,13.30997208,155.5,155.46,6.4324]
[1727757123658,6.4301,155.52,155.47,6.432]
[1727757123961,6.43,155.52,155.47,7.71827305]
[1727757124137,6.4296,155.53,155.48,6.4316]
[1727757124558,6.4292,155.55,155.5,6.4308]
[1727757125361,5.92159876,155.59,155.51,17.46281376]
[1727757125539,6.4279,155.58,155.51,33.53861376]
[1727757125864,6.4279,155.58,155.53,6.4296]
[1727757126154,1.60727004,155.57,155.52,6.43]
[1727757127464,6.4279,155.58,155.52,6.43]
[1727757127962,8.0352678,155.57,155.52,6.43]
[1727757128756,6.4284,155.56,155.51,32.2526]
[1727757128945,1.60737451,155.55,155.51,32.2526]
[1727757131364,6.4293,155.54,155.48,22.5104]
[1727757131672,1.60750581,155.53,155.48,22.5104]
[1727757131847,6.4293,155.54,155.49,6.4312]
[1727757134063,6.4296,155.53,155.48,16.0792]
[1727757135768,6.4296,155.53,155.48,22.5108]
[1727757136773,8.03770532,155.52,155.48,16.0792]
[1727757136983,6.43,155.52,155.48,16.0792]
[1727757138567,6.4308,155.5,155.45,22.5149]
[1727757138772,6.4305,155.51,155.45,22.5149]
[1727757139571,6.4305,155.51,155.46,6.4322]
[1727757141669,6.4305,155.51,155.45,16.0821]
[1727757141670,6.4301,155.52,155.47,6.432]
[1727757141844,1.60779717,155.51,155.47,6.432]
[1727757142048,6.4301,155.52,155.47,6.432]
[1727757142268,1.60779689,155.51,155.47,6.432]
[1727757142453,6.4301,155.52,155.47,6.432]
[1727757143969,6.4296,155.53,155.48,6.4315]
[1727757144487,6.4293,155.54,155.49,6.4312]
[1727757144653,6.4288,155.55,155.5,6.4307]
[1727757144849,6.4283,155.56,155.51,6.4302]
[1727757147460,15.58378965,155.61,155.49,16.0774]
[1727757147659,6.428,155.57,155.52,6.43]
[1727757147853,15.58378965,155.61,155.53,6.4295]
[1727757147854,6.4276,155.58,155.53,6.4295]
[1727757152177,1.60710391,155.57,155.53,6.4295]
[1727757152382,8.03500391,155.57,155.52,6.43]
[1727757152551,6.4279,155.57,155.52,6.43]
[1727757152873,6.4276,155.58,155.53,6.4295]
[1727757157276,1.60703064,155.57,155.51,16.0754]
[1727757157459,1.60703064,155.57,155.48,15.5667]
[1727757157663,6.4288,155.55,155.5,6.4307]
[1727757158375,1.60744475,155.54,155.5,6.4307]
[1727757159070,6.4275,155.58,155.53,6.4296]
[1727757159487,1.6071525,155.57,155.53,6.4296]
[1727757159772,0.8303797,155.61,155.54,16.4045224]
[1727757159953,7.2566797,155.61,155.56,6.4283]
[1727757160154,0.8303797,155.61,155.56,6.4283]
[1727757160554,0.8303797,155.61,155.57,1.28542701]
[1727757160864,0.8303797,155.61,155.56,6.4283]
[1727757161072,2.43718262,155.61,155.56,6.4283]
[1727757161968,0.8303797,155.61,155.56,6.4283]
[1727757162378,2.43717537,155.61,155.56,6.4283]
[1727757163276,0.8303797,155.61,155.57,7.71333987]
[1727757163585,0.8303797,155.61,155.57,6.4279]
[1727757163959,7.2566797,155.61,155.56,6.4283]
[1727757165089,1.60681341,155.6,155.56,6.4283]
[1727757165264,7.2566797,155.61,155.56,6.4283]
[1727757165462,8.03369505,155.6,155.55,16.0719]
[1727757166485,6.4268,155.6,155.55,16.0719]
[1727757167170,7.2566797,155.61,155.56,1.28551488]
[1727757167589,7.2566797,155.61,155.55,22.5006]
[1727757168283,7.2566797,155.61,155.56,1.2854971]
[1727757168471,7.2566797,155.61,155.56,7.7137971]
[1727757168672,7.2566797,155.61,155.56,6.4283]
[1727757170167,0.8303797,155.61,155.56,6.4283]
[1727757170583,2.43712717,155.61,155.56,6.4283]
[1727757172680,0.8303797,155.61,155.57,1.28539758]
[1727757172880,0.8303797,155.61,155.56,6.4283]
[1727757173188,2.43712436,155.61,155.56,6.4283]
[1727757173495,0.8303797,155.61,155.56,6.4283]
[1727757173790,2.43712629,155.61,155.56,6.4283]